bitfinex-derivatives/quotes_BTCF0:USTF0_20241128
["timestamp","ask_amount","ask_price","bid_price","bid_amount"]
[1732763668851,0.41304,95620.0,95619.0,0.00509658]
[1732763669846,0.42139562,95620.0,95619.0,0.00509658]
[1732763670249,0.41304,95620.0,95619.0,0.00509658]
[1732763670448,0.42139593,95620.0,95619.0,0.00509658]
[1732763671444,0.42136395,95620.0,95619.0,0.00509658]
[1732763671950,0.41304,95620.0,95619.0,0.00509658]
[1732763672348,0.052244,95613.0,95612.0,0.25047942]
[1732763673547,0.052244,95613.0,95612.0,0.25447942]
[1732763673848,0.052244,95613.0,95612.0,0.26047942]
[1732763676245,0.052244,95613.0,95612.0,0.25647942]
[1732763676449,0.052244,95613.0,95612.0,0.009]
[1732763677447,0.052244,95613.0,95612.0,0.003]
[1732763677656,0.053244,95613.0,95612.0,0.055245]
[1732763678150,0.052244,95613.0,95612.0,0.057245]
[1732763678747,0.052244,95613.0,95612.0,0.055245]
[1732763678947,0.052244,95613.0,95612.0,0.056245]
[1732763679150,0.053244,95613.0,95612.0,0.056245]
[1732763679951,0.052244,95613.0,95612.0,0.058245]
[1732763680651,0.052244,95613.0,95612.0,0.057245]
[1732763681252,0.052244,95613.0,95612.0,0.054245]
[1732763681747,0.052244,95613.0,95612.0,0.053245]
[1732763681947,0.052244,95613.0,95612.0,0.056245]
[1732763682251,0.14468024,95613.0,95612.0,0.056245]
[1732763682449,0.052244,95613.0,95612.0,0.056245]
[1732763683058,0.09243624,95614.0,95613.0,0.052244]
[1732763684649,0.0924606,95622.0,95620.0,0.05224]
[1732763684855,0.0924606,95622.0,95613.0,0.008]
[1732763684856,0.0924606,95622.0,95621.0,0.11644]
[1732763685251,0.052238,95624.0,95622.0,0.052239]
[1732763685455,0.052238,95624.0,95623.0,0.18789591]
[1732763685754,0.052238,95624.0,95623.0,0.052239]
[1732763690650,0.3608,95625.0,95624.0,0.052238]
[1732763692055,0.413037,95625.0,95624.0,0.052238]
[1732763693559,0.3608,95625.0,95624.0,0.052238]
[1732763699464,0.4532995,95625.0,95624.0,0.052238]
[1732763699656,0.3608,95625.0,95624.0,0.052238]
[1732763699861,0.413037,95625.0,95624.0,0.052238]
[1732763700755,0.052239,95623.0,95622.0,0.18786048]
[1732763700969,0.3608,95625.0,95617.0,0.25048237]
[1732763700970,0.052241,95618.0,95617.0,0.25048237]
[1732763701267,0.77762126,95618.0,95617.0,0.10554065]
[1732763702360,0.78262126,95618.0,95600.0,0.06888111]
[1732763702664,0.413049,95604.0,95600.0,0.06888111]
[1732763702858,0.42146903,95604.0,95600.0,0.06888111]
[1732763703661,0.42146903,95604.0,95597.0,0.01782804]
[1732763704666,0.42146903,95604.0,95594.0,0.18780327]
[1732763704667,0.052254,95595.0,95594.0,0.18780327]
[1732763704958,0.42147403,95595.0,95594.0,0.18780327]
[1732763705555,0.45420615,95595.0,95594.0,0.18780327]
[1732763706360,0.76804615,95595.0,95594.0,0.18780327]
[1732763706662,1.06804615,95595.0,95566.0,0.75136899]
[1732763706857,0.3608,95573.0,95570.0,0.10502413]
[1732763707065,0.07507928,95572.0,95571.0,5.116e-05]
[1732763707458,0.07599401,95572.0,95571.0,5.116e-05]
[1732763707658,0.06139277,95572.0,95571.0,5.116e-05]
[1732763708260,0.01012577,95572.0,95571.0,0.00805116]
[1732763708460,0.3608,95579.0,95572.0,0.052266]
[1732763708662,0.3608,95579.0,95578.0,0.052263]
[1732763709376,0.3608,95595.0,95578.0,0.3608]
[1732763709563,0.3608,95595.0,95591.0,0.052256]
[1732763709757,0.3608,95595.0,95592.0,0.0349]
[1732763710558,0.3608,95595.0,95593.0,0.052255]
[1732763710965,0.3608,95616.0,95595.0,0.052254]
[1732763711266,0.3608,95625.0,95595.0,0.052254]
[1732763711267,0.052239,95622.0,95608.0,0.46582413]
[1732763711465,0.052239,95622.0,95614.0,0.052243]
[1732763711660,0.052242,95617.0,95615.0,0.0351]
[1732763712365,0.003,95616.0,95615.0,0.0351]
[1732763712555,0.3638,95616.0,95615.0,0.0351]
[1732763712958,0.052246,95610.0,95608.0,0.001]
[1732763713158,0.3638,95616.0,95598.0,0.0351]
[1732763713365,0.052253,95597.0,95596.0,5.116e-05]
[1732763713571,0.413053,95597.0,95596.0,5.116e-05]
[1732763714862,0.413053,95597.0,95596.0,0.00405116]
[1732763715467,0.595693,95597.0,95596.0,0.00405116]
[1732763715665,0.595693,95597.0,95596.0,0.01005116]
[1732763715860,0.595693,95597.0,95596.0,0.00605116]
[1732763716069,0.598693,95597.0,95596.0,0.00605116]
[1732763716269,0.598693,95597.0,95596.0,5.116e-05]
[1732763716564,0.603693,95597.0,95596.0,5.116e-05]
[1732763717562,0.600693,95597.0,95596.0,0.00305116]
[1732763717765,0.418053,95597.0,95596.0,0.00305116]
[1732763718463,0.418053,95597.0,95596.0,5.116e-05]
[1732763718464,0.005,95597.0,95596.0,5.116e-05]
[1732763718768,0.3608,95616.0,95596.0,0.38295116]
[1732763718968,0.413043,95616.0,95609.0,0.052246]
[1732763719169,0.413043,95616.0,95606.0,0.10502413]
[1732763719369,0.413043,95616.0,95611.0,0.052245]
[1732763719776,0.3608,95616.0,95614.0,0.052243]
[1732763719966,0.3608,95616.0,95615.0,0.0323]
[1732763720365,0.002,95616.0,95615.0,0.0323]
[1732763721473,0.002,95616.0,95615.0,0.0343]
[1732763721675,0.01036718,95616.0,95615.0,0.0675]
[1732763721980,0.00836718,95616.0,95615.0,0.0675]
[1732763722280,0.36916718,95616.0,95615.0,0.003]
[1732763722577,0.73516918,95616.0,95615.0,0.003]
[1732763722890,0.73516918,95616.0,95615.0,0.007]
[1732763723178,0.42140918,95616.0,95615.0,0.007]
[1732763723668,0.73516918,95616.0,95615.0,0.006]
[1732763723872,0.73516918,95616.0,95615.0,0.003]
[1732763724076,0.73616918,95616.0,95615.0,0.003]
[1732763724273,0.42240918,95616.0,95615.0,0.003]
[1732763724766,0.73616918,95616.0,95615.0,0.003]
[1732763725470,0.052252,95598.0,95597.0,0.0332]
[1732763725982,0.052252,95598.0,95596.0,5.116e-05]
[1732763726664,0.00838602,95597.0,95596.0,5.116e-05]
[1732763727069,0.00838599,95597.0,95596.0,5.116e-05]
[1732763728370,0.01038599,95597.0,95596.0,5.116e-05]
[1732763729569,0.002,95597.0,95596.0,5.116e-05]
[1732763729773,0.004,95597.0,95596.0,5.116e-05]
[1732763729967,0.004,95597.0,95596.0,0.05230416]
[1732763730363,0.052248,95607.0,95596.0,0.31385116]
[1732763730569,0.18420925,95617.0,95610.0,0.052245]
[1732763730570,0.052244,95614.0,95610.0,0.052245]
[1732763730769,0.00156925,95617.0,95615.0,0.052242]
[1732763732380,0.00156925,95617.0,95615.0,0.053242]
[1732763732673,0.3608,95620.0,95619.0,0.052241]
[1732763734073,0.3608,95629.0,95628.0,0.052236]
[1732763734272,0.052232,95635.0,95629.0,0.052235]
[1732763734476,0.3608,95636.0,95630.0,0.0329]
[1732763734671,0.052234,95632.0,95630.0,0.0329]
[1732763735776,0.414032,95636.0,95630.0,0.0329]
[1732763735983,0.3618,95636.0,95634.0,0.052232]
[1732763736479,0.3608,95636.0,95634.0,0.052232]
[1732763738280,0.3638,95636.0,95634.0,0.052232]
[1732763739078,0.3608,95636.0,95634.0,0.052232]
[1732763739289,0.003,95636.0,95635.0,0.18248]
[1732763739580,0.003,95636.0,95635.0,0.21648]
[1732763740277,0.003,95636.0,95635.0,0.53016]
[1732763740476,7.954e-05,95649.0,95648.0,0.052225]
[1732763742786,0.00707954,95649.0,95648.0,0.053225]
[1732763742984,0.00707954,95649.0,95648.0,0.054225]
[1732763744378,0.00707954,95649.0,95648.0,0.236705]
[1732763747091,0.3608,95656.0,95648.0,0.55044493]
[1732763747281,0.3608,95664.0,95651.0,0.3608]
[1732763747482,0.3608,95664.0,95663.0,0.052217]
[1732763748878,0.3608,95664.0,95663.0,0.053217]
[1732763749078,0.005,95664.0,95663.0,0.053217]
[1732763749286,0.005,95664.0,95663.0,0.122717]
[1732763750184,0.005,95664.0,95663.0,0.437317]
[1732763750391,0.12300897,95678.0,95663.0,0.437317]
[1732763750392,0.00010329,95678.0,95677.0,0.052209]
[1732763751588,0.00010329,95678.0,95677.0,0.061209]
[1732763753384,0.00010329,95678.0,95677.0,0.070209]
[1732763760591,0.00010329,95678.0,95677.0,0.061209]
[1732763760896,0.00010329,95678.0,95677.0,0.053209]
[1732763761097,0.41311129,95678.0,95677.0,0.002]
[1732763761286,0.05222,95657.0,95652.0,0.035]
[1732763761595,0.6748873,95678.0,95654.0,0.052221]
[1732763761596,0.413021,95656.0,95654.0,0.052221]
[1732763762292,0.052222,95653.0,95648.0,0.05232393]
[1732763762492,0.3608,95656.0,95648.0,9.993e-05]
[1732763762687,0.052223,95651.0,95649.0,0.052224]
[1732763763293,0.3608,95656.0,95648.0,9.993e-05]
[1732763763294,0.052224,95649.0,95648.0,9.993e-05]
[1732763764693,0.3608,95653.0,95648.0,9.993e-05]
[1732763765290,0.002,95649.0,95648.0,9.993e-05]
[1732763765790,0.3608,95653.0,95648.0,9.993e-05]
[1732763766097,0.3628,95653.0,95648.0,9.993e-05]
[1732763766601,0.052224,95650.0,95648.0,9.993e-05]
[1732763767693,0.001,95649.0,95648.0,9.993e-05]
[1732763768098,0.001,95649.0,95648.0,0.05232493]
[1732763768394,0.09199818,95652.0,95651.0,0.052223]
[1732763769003,0.09199818,95652.0,95649.0,0.0333]
[1732763769204,0.053224,95649.0,95648.0,9.993e-05]
[1732763770192,0.052235,95630.0,95622.0,0.052239]
[1732763770494,0.366864,95649.0,95622.0,0.052239]
[1732763770495,0.052239,95623.0,95622.0,0.00056]
[1732763770800,0.052242,95617.0,95610.0,0.052245]
[1732763771000,0.413042,95617.0,95610.0,0.052245]
[1732763771901,0.413042,95617.0,95605.0,0.0333]
[1732763772113,0.413042,95617.0,95603.0,0.052249]
[1732763772295,0.413042,95617.0,95616.0,0.25353802]
[1732763772806,0.413042,95617.0,95616.0,0.004]
[1732763772998,0.413042,95617.0,95616.0,0.008]
[1732763774409,0.052254,95596.0,95594.0,0.00156908]
[1732763774604,0.052254,95596.0,95573.0,0.3608]
[1732763774605,0.3608,95595.0,95581.0,0.034]
[1732763774918,0.3608,95585.0,95581.0,0.034]
[1732763775607,0.3608,95585.0,95571.0,0.052267]
[1732763775802,0.3608,95575.0,95571.0,0.052267]
[1732763776110,0.3608,95575.0,95564.0,0.069]
[1732763776612,0.3608,95575.0,95567.0,0.052269]
[1732763776810,0.3608,95581.0,95572.0,0.052266]
[1732763777015,0.3608,95581.0,95570.0,0.052267]
[1732763777518,0.3608,95581.0,95570.0,0.10502413]
[1732763777824,0.3608,95581.0,95564.0,0.034]
[1732763777825,0.3608,95572.0,95564.0,0.034]
[1732763778013,0.05227,95565.0,95564.0,0.043]
[1732763778209,0.05227,95565.0,95564.0,0.009]
[1732763778926,0.05227,95566.0,95546.0,0.0348]
[1732763779221,0.05227,95565.0,95564.0,0.00702039]
[1732763779421,0.41307,95565.0,95564.0,0.00702039]
[1732763779611,0.72699,95565.0,95564.0,0.00702039]
[1732763780223,0.7352085,95565.0,95564.0,0.00702039]
[1732763780428,0.9176485,95565.0,95564.0,0.00702039]
[1732763780724,0.90943,95565.0,95564.0,0.00702039]
[1732763780923,0.90943,95565.0,95564.0,0.008]
[1732763781114,0.90943,95565.0,95564.0,0.014]
[1732763783419,0.91782621,95565.0,95564.0,0.014]
[1732763785726,1.16555621,95565.0,95526.0,0.18244]
[1732763785932,0.3608,95538.0,95531.0,0.0335]
[1732763786114,0.3608,95538.0,95532.0,0.052288]
[1732763786515,0.3608,95538.0,95531.0,0.0335]
[1732763786715,0.3608,95538.0,95533.0,0.052287]
[1732763786913,0.3608,95538.0,95531.0,0.0335]
[1732763787130,0.3608,95538.0,95536.0,0.47153932]
[1732763787719,0.3608,95547.0,95536.0,0.47553932]
[1732763788016,0.18248,95558.0,95557.0,0.052275]
[1732763788215,0.00157041,95561.0,95559.0,0.052273]
[1732763788419,0.00157041,95561.0,95560.0,0.3608]
[1732763788617,0.00157041,95561.0,95560.0,0.0355]
[1732763789425,0.38171927,95592.0,95590.0,0.052256]
[1732763789628,0.00824499,95591.0,95590.0,0.052256]
[1732763790130,0.00156962,95601.0,95584.0,0.3608]
[1732763790131,0.10502413,95600.0,95584.0,0.3608]
[1732763790319,0.3608,95592.0,95581.0,0.052261]
[1732763790715,0.3608,95592.0,95570.0,0.1065935]
[1732763791127,0.00838456,95591.0,95583.0,0.05226]
[1732763791327,0.00838456,95590.0,95583.0,0.05226]
[1732763791624,0.00838456,95589.0,95583.0,0.05226]
[1732763791821,0.052262,95580.0,95570.0,0.00156937]
[1732763792023,0.3608,95574.0,95570.0,0.00156937]
[1732763792422,0.00853155,95573.0,95568.0,0.052268]
[1732763792630,0.00853155,95572.0,95568.0,0.052268]
[1732763792830,0.00853155,95571.0,95568.0,0.052268]
[1732763793027,0.00853155,95570.0,95568.0,0.052268]
[1732763793333,0.00853155,95569.0,95568.0,0.052268]
[1732763793724,0.3658,95574.0,95573.0,0.052266]
[1732763793919,0.36917696,95574.0,95573.0,0.052266]
[1732763795229,0.36917696,95574.0,95573.0,0.060266]
[1732763795426,0.36917696,95574.0,95573.0,0.008]
[1732763796541,0.42144196,95574.0,95573.0,0.008]
[1732763797039,0.37017696,95574.0,95551.0,0.086678]
[1732763797232,0.052273,95560.0,95551.0,0.086678]
[1732763797538,0.06065096,95559.0,95551.0,0.086678]
[1732763797725,0.00837696,95558.0,95551.0,0.0344]
[1732763797925,0.00837696,95557.0,95552.0,0.052277]
[1732763798122,0.00837696,95556.0,95552.0,0.052277]
[1732763798332,0.052276,95554.0,95546.0,0.0335]
[1732763798539,0.06065396,95553.0,95546.0,0.08578]
[1732763798730,0.00837696,95552.0,95546.0,0.08578]
[1732763798931,0.00837696,95551.0,95546.0,0.08578]
[1732763799129,0.00837696,95551.0,95546.0,0.0335]
[1732763799328,0.052278,95552.0,95548.0,0.052279]
[1732763799725,0.052278,95552.0,95549.0,0.052279]
[1732763800229,0.3608,95555.0,95553.0,0.052277]
[1732763801138,0.052277,95553.0,95547.0,0.05228]
[1732763801347,0.052278,95552.0,95547.0,0.05228]
[1732763802234,0.053278,95552.0,95549.0,0.052279]
[1732763802435,0.053278,95552.0,95546.0,0.0335]
[1732763802436,0.052279,95550.0,95546.0,0.0335]
[1732763802733,0.3618,95555.0,95547.0,0.36624]
[1732763802734,0.00833413,95549.0,95547.0,0.36624]
[1732763802930,0.00833413,95549.0,95547.0,0.05228]
[1732763803129,0.00833413,95548.0,95547.0,0.05228]
[1732763803429,0.00834007,95548.0,95546.0,0.0335]
[1732763803629,0.001,95552.0,95551.0,0.052278]
[1732763803832,0.00942756,95552.0,95551.0,0.052278]
[1732763804339,0.001,95552.0,95551.0,0.052278]
[1732763804534,0.001,95552.0,95551.0,0.413078]
[1732763805335,0.09172545,95567.0,95566.0,0.05227]
[1732763805540,0.09223144,95568.0,95559.0,0.3608]
[1732763805737,0.09223144,95568.0,95563.0,0.052271]
[1732763805945,0.09223144,95569.0,95568.0,0.052269]
[1732763806639,0.09224088,95569.0,95568.0,0.052269]
[1732763806844,0.052268,95570.0,95568.0,0.052269]
[1732763807040,0.09224065,95569.0,95568.0,0.052269]
[1732763807432,0.48364445,95573.0,95572.0,0.052266]
[1732763808556,0.004,95573.0,95572.0,0.052266]
[1732763809243,0.004,95573.0,95572.0,0.366146]
[1732763809435,0.0015701,95575.0,95574.0,0.052265]
[1732763810034,0.1223006,95577.0,95574.0,0.052265]
[1732763810239,0.1223006,95577.0,95576.0,0.052264]
[1732763812649,0.1223006,95577.0,95576.0,0.084664]
[1732763813343,0.1243006,95577.0,95576.0,0.084664]
[1732763813546,0.002,95577.0,95576.0,0.084664]
[1732763814148,0.002,95577.0,95576.0,0.052264]
[1732763814349,0.002,95577.0,95576.0,0.001]
[1732763814555,0.6851581,95577.0,95576.0,0.001]
[1732763814851,0.052274,95558.0,95556.0,0.00156954]
[1732763815052,0.0084781,95557.0,95556.0,0.00156954]
[1732763815552,0.02279138,95557.0,95556.0,0.00156954]
[1732763815748,0.052274,95558.0,95556.0,0.00156954]
[1732763815955,0.02326098,95557.0,95556.0,0.00156954]
[1732763816353,0.02326098,95557.0,95556.0,0.05384454]
[1732763816555,0.02426098,95557.0,95556.0,0.008]
[1732763816744,0.07653598,95557.0,95556.0,0.008]
[1732763817643,0.07653598,95557.0,95556.0,0.015]
[1732763818045,0.07653598,95557.0,95556.0,0.007]
[1732763818046,0.02626098,95557.0,95556.0,0.007]
[1732763818447,0.01294653,95557.0,95553.0,0.052276]
[1732763818648,0.00894653,95556.0,95553.0,0.052276]
[1732763818847,0.00894653,95555.0,95553.0,0.052276]
[1732763819052,0.00894653,95554.0,95544.0,0.4284]
[1732763819253,0.052279,95550.0,95544.0,0.413081]
[1732763819463,0.00894653,95549.0,95539.0,0.1824]
[1732763819645,0.06122653,95548.0,95540.0,0.052283]
[1732763819850,0.00894653,95547.0,95540.0,0.052283]
[1732763820045,0.00894653,95546.0,95543.0,0.052282]
[1732763820356,0.00894653,95545.0,95543.0,0.052282]
[1732763820557,0.00894653,95544.0,95543.0,0.052282]
[1732763821259,0.00894653,95544.0,95543.0,0.054282]
[1732763821655,0.00894653,95544.0,95543.0,0.057282]
[1732763821859,0.00847543,95544.0,95543.0,0.057282]
[1732763822055,0.06075743,95544.0,95543.0,0.005]
[1732763822253,0.06075743,95544.0,95543.0,0.002]
[1732763822457,0.06075743,95544.0,95543.0,0.005]
[1732763822855,0.24315743,95544.0,95543.0,0.005]
[1732763823262,0.24328985,95544.0,95543.0,0.003]
[1732763823458,0.24328985,95544.0,95543.0,0.005]
[1732763824266,0.55728985,95544.0,95543.0,0.005]
[1732763824558,0.68011737,95544.0,95543.0,0.00063235]
[1732763824761,0.052291,95527.0,95516.0,0.37524719]
[1732763824965,0.42169885,95527.0,95516.0,0.37524719]
[1732763825661,0.42169885,95527.0,95508.0,0.0322]
[1732763826156,0.42169885,95527.0,95503.0,0.0321]
[1732763826358,0.728131,95527.0,95526.0,0.01057015]
[1732763826662,0.052298,95515.0,95503.0,0.0321]
[1732763826857,0.052298,95515.0,95507.0,0.052302]
[1732763827162,0.052298,95515.0,95508.0,5.87e-05]
[1732763827353,0.052298,95515.0,95509.0,0.052301]
[1732763827951,0.3608,95516.0,95511.0,0.052299]
[1732763828265,0.0087239,95514.0,95513.0,0.052299]
[1732763828457,0.00962097,95515.0,95513.0,0.052299]
[1732763828657,0.00862097,95514.0,95513.0,0.052299]
[1732763830063,0.00962097,95514.0,95513.0,0.056299]
[1732763830259,0.001,95514.0,95513.0,0.056299]
[1732763830763,0.001,95514.0,95513.0,0.417099]
[1732763831167,0.002,95514.0,95513.0,0.426099]
[1732763831366,0.002,95514.0,95513.0,0.458199]
[1732763833763,0.002,95514.0,95513.0,0.772279]
[1732763833973,0.3608,95543.0,95513.0,0.772279]
[1732763834268,0.413087,95534.0,95530.0,0.052289]
[1732763834567,0.052289,95532.0,95530.0,0.052289]
[1732763834769,0.052289,95530.0,95524.0,0.052293]
[1732763834965,0.00854402,95529.0,95520.0,0.10511513]
[1732763835166,0.052289,95530.0,95513.0,0.4059]
[1732763835362,0.052289,95530.0,95528.0,0.05229]
[1732763835671,0.00851404,95529.0,95528.0,0.05229]
[1732763835964,0.3608,95534.0,95532.0,0.052288]
[1732763836162,0.00853902,95533.0,95532.0,0.052288]
[1732763837367,0.00853902,95533.0,95528.0,0.005]
[1732763837672,0.052297,95516.0,95515.0,0.052298]
[1732763838460,0.06098408,95516.0,95515.0,0.052298]
[1732763840274,0.06098408,95516.0,95515.0,0.061298]
[1732763840664,0.06198408,95516.0,95515.0,0.066298]
[1732763841566,0.06190751,95516.0,95515.0,0.066298]
[1732763841767,0.06190751,95516.0,95515.0,0.014]
[1732763842066,0.37598751,95516.0,95500.0,0.1]
[1732763842258,0.413101,95509.0,95500.0,0.1]
[1732763842458,0.42171151,95509.0,95500.0,0.1]
[1732763843263,0.42171151,95509.0,95500.0,0.152306]
[1732763843463,0.42171151,95509.0,95500.0,0.1]
[1732763843865,0.42171151,95509.0,95508.0,0.0050587]
[1732763844067,0.42171151,95509.0,95508.0,0.0100587]
[1732763844462,0.42271151,95509.0,95508.0,0.0100587]
[1732763844779,0.73683151,95509.0,95508.0,0.0050587]
[1732763845075,0.73683151,95509.0,95508.0,0.0100587]
[1732763845872,0.42271151,95509.0,95508.0,0.0100587]
[1732763847575,0.73683151,95509.0,95508.0,0.0100587]
[1732763847779,0.91923151,95509.0,95508.0,0.0100587]
[1732763848276,0.93323721,95509.0,95508.0,0.0100587]
[1732763849577,0.93361278,95509.0,95508.0,0.0100587]
[1732763850375,0.61949278,95509.0,95508.0,0.0100587]
[1732763850876,0.93361278,95509.0,95508.0,0.0100587]
[1732763851076,0.61949278,95509.0,95508.0,0.0100587]
[1732763852881,0.43709278,95509.0,95508.0,0.0100587]
[1732763860084,0.43758571,95509.0,95508.0,0.0100587]
[1732763861780,0.02448471,95509.0,95508.0,0.0100587]
[1732763861981,0.01003258,95509.0,95508.0,0.0100587]
[1732763864090,0.06233358,95509.0,95508.0,0.0100587]
[1732763864387,0.07678571,95509.0,95508.0,0.0100587]
[1732763864589,0.06233358,95509.0,95508.0,0.0100587]
[1732763864787,0.07678571,95509.0,95508.0,0.0100587]
[1732763864993,0.06233358,95509.0,95508.0,0.0100587]
[1732763865189,0.07678571,95509.0,95508.0,0.0100587]
[1732763865991,0.06233358,95509.0,95508.0,0.0100587]
[1732763866192,0.07678571,95509.0,95508.0,0.0100587]
[1732763866593,0.07678571,95509.0,95500.0,0.1]
[1732763866890,0.413105,95501.0,95500.0,0.1]
[1732763867078,0.43642144,95501.0,95500.0,0.1]
[1732763867680,0.75054144,95501.0,95500.0,0.1]
[1732763868193,0.73719286,95501.0,95500.0,9.3e-07]
[1732763868387,1.17703286,95501.0,95500.0,9.3e-07]
[1732763868581,0.052315,95483.0,95482.0,0.25038219]
[1732763868781,0.96524286,95483.0,95482.0,0.25038219]
[1732763868986,1.27944286,95483.0,95482.0,0.25038219]
[1732763869894,0.96524286,95483.0,95482.0,0.25038219]
[1732763870286,0.96524286,95483.0,95461.0,0.0355]
[1732763870287,0.96524286,95483.0,95468.0,0.052323]
[1732763870493,0.052321,95472.0,95469.0,0.052323]
[1732763870681,1.02668353,95483.0,95461.0,0.0355]
[1732763870682,0.09204264,95478.0,95461.0,0.0355]
[1732763870883,0.09204264,95480.0,95478.0,0.052317]
[1732763871184,0.09204264,95480.0,95479.0,0.0342]
[1732763871584,0.09204264,95480.0,95479.0,0.0688]
[1732763871891,0.052316,95481.0,95479.0,0.0688]
[1732763872600,0.052316,95481.0,95448.0,0.3608]
[1732763872601,0.052328,95459.0,95456.0,0.72674774]
[1732763872781,0.052328,95459.0,95456.0,0.72610774]
[1732763874391,0.053328,95459.0,95456.0,0.41313]
[1732763874786,0.053328,95459.0,95456.0,0.41813]
[1732763875583,0.053328,95459.0,95456.0,0.05733]
[1732763875788,0.053328,95459.0,95457.0,0.1031]
[1732763876993,0.052328,95459.0,95457.0,0.1031]
[1732763877198,0.053328,95459.0,95457.0,0.0676]
[1732763877395,0.053328,95459.0,95456.0,0.005]
[1732763877396,0.052329,95457.0,95456.0,0.005]
[1732763877588,0.001,95459.0,95449.0,0.0323]
[1732763877900,0.052329,95458.0,95457.0,0.005]
[1732763878396,0.001,95459.0,95449.0,0.0323]
[1732763878599,0.052333,95450.0,95449.0,0.0323]
[1732763880891,0.053333,95450.0,95449.0,0.0393]
[1732763881699,0.054333,95450.0,95449.0,0.0393]
[1732763884601,0.06312623,95450.0,95449.0,0.0393]
[1732763888208,0.01079323,95450.0,95449.0,0.0393]
[1732763888895,0.01079323,95450.0,95449.0,0.007]
[1732763890408,0.00979323,95450.0,95449.0,0.004]
[1732763891601,0.06212623,95450.0,95449.0,0.004]
[1732763892701,0.05235,95420.0,95419.0,0.32697172]
[1732763892907,0.06093259,95420.0,95419.0,0.32697172]
[1732763893106,0.00858259,95420.0,95414.0,0.49446795]
[1732763893307,0.052352,95417.0,95414.0,0.49446795]
[1732763893506,0.052352,95417.0,95415.0,5.761e-05]
[1732763893711,0.00847595,95416.0,95415.0,5.761e-05]
[1732763893909,0.00847595,95416.0,95415.0,0.36085761]
[1732763894103,0.001,95420.0,95419.0,0.05235]
[1732763894506,0.00927767,95420.0,95419.0,0.05235]
[1732763894705,0.00827767,95420.0,95419.0,0.05235]
[1732763895214,0.001,95420.0,95419.0,0.05235]
[1732763895711,0.001,95420.0,95416.0,0.3608]
[1732763896219,0.05435,95420.0,95419.0,0.05235]
[1732763896914,0.002,95420.0,95415.0,0.18233761]
[1732763897115,0.002,95420.0,95415.0,5.761e-05]
[1732763897116,0.052351,95417.0,95415.0,5.761e-05]
[1732763898203,0.086851,95417.0,95415.0,5.761e-05]
[1732763898409,0.087851,95417.0,95415.0,5.761e-05]
[1732763899224,0.00826648,95416.0,95415.0,0.00405761]
[1732763899914,0.00826648,95416.0,95415.0,5.761e-05]
[1732763900114,0.00826648,95416.0,95415.0,0.05540961]
[1732763900911,0.00826648,95416.0,95415.0,0.00305761]
[1732763901320,0.00926648,95416.0,95415.0,0.00305761]
[1732763902515,0.00926648,95416.0,95415.0,0.03465761]
[1732763903422,0.00926648,95416.0,95415.0,0.00305761]
[1732763904109,0.00926648,95416.0,95415.0,0.18537761]
[1732763904314,0.00926648,95416.0,95415.0,0.57787761]
[1732763905613,0.3608,95426.0,95425.0,0.052347]
[1732763906211,0.12217804,95431.0,95425.0,0.366747]
[1732763906415,0.12217804,95431.0,95426.0,0.49668]
[1732763906725,0.12217804,95431.0,95430.0,0.052344]
[1732763907105,0.12217804,95431.0,95430.0,0.366704]
[1732763907917,0.12217804,95431.0,95430.0,0.234664]
[1732763908116,0.12217804,95431.0,95430.0,0.549024]
[1732763908820,0.12317804,95431.0,95430.0,0.549024]
[1732763909220,0.12717804,95431.0,95430.0,0.549024]
[1732763909612,0.12617804,95431.0,95430.0,0.551024]
[1732763910315,0.12617804,95431.0,95430.0,0.553024]
[1732763910518,0.01406297,95436.0,95435.0,0.052341]
[1732763910708,0.01406297,95441.0,95435.0,0.413141]
[1732763910912,0.01406297,95441.0,95440.0,0.052339]
[1732763911115,0.18326707,95442.0,95440.0,0.052339]
[1732763911307,0.18326707,95442.0,95441.0,0.4966]
[1732763911507,0.18326707,95442.0,95441.0,0.18228]
[1732763913521,0.05234,95438.0,95437.0,0.01754659]
[1732763913721,0.08176297,95441.0,95440.0,0.052339]
[1732763914419,0.04796297,95441.0,95440.0,0.052339]
[1732763914621,0.01406297,95441.0,95440.0,0.366659]
[1732763914920,0.18326707,95442.0,95440.0,0.366659]
[1732763915113,0.18326707,95442.0,95441.0,0.31432]
[1732763915315,0.18326707,95442.0,95441.0,0.31437761]
[1732763915633,0.12493907,95442.0,95441.0,0.31437761]
[1732763915922,0.21381158,95453.0,95451.0,0.052333]
[1732763916230,0.21381158,95453.0,95452.0,0.54308]
[1732763916428,0.22871547,95453.0,95452.0,0.85736]
[1732763916626,0.24435609,95459.0,95458.0,0.052329]
[1732763917039,0.24435609,95459.0,95458.0,0.366609]
[1732763917518,0.0093371,95459.0,95458.0,0.31428]
[1732763917719,1e-07,95459.0,95458.0,0.666609]
[1732763918322,0.2749006,95464.0,95458.0,0.61428]
[1732763918521,0.2749006,95464.0,95463.0,0.413126]
[1732763918918,0.2749006,95464.0,95463.0,0.727366]
[1732763920138,0.0001216,95474.0,95473.0,0.052321]
[1732763920331,0.0001216,95474.0,95473.0,0.234361]
[1732763920719,0.0001216,95474.0,95473.0,0.548601]
[1732763920921,0.0653,95491.0,95486.0,0.052313]
[1732763921121,0.0653,95491.0,95490.0,0.052311]
[1732763923232,0.0335,95494.0,95493.0,0.05231]
[1732763923428,0.0996,95494.0,95493.0,0.05231]
[1732763925535,0.1086,95494.0,95493.0,0.05231]
[1732763925736,0.0425,95494.0,95493.0,0.05241914]
[1732763926431,0.0495,95494.0,95493.0,0.23541914]
[1732763927236,0.0425,95494.0,95493.0,0.23741914]
[1732763927832,0.0345,95494.0,95493.0,0.23841914]
[1732763928430,0.0335,95494.0,95493.0,0.23741914]
[1732763928635,0.0355,95494.0,95493.0,0.23741914]
[1732763929534,0.0355,95494.0,95493.0,0.23441914]
[1732763929735,0.04675792,95494.0,95493.0,0.23441914]
[1732763929937,0.04575792,95494.0,95493.0,0.23441914]
[1732763930436,0.04475792,95494.0,95493.0,0.23641914]